fUSD/lending_fUSD_20240114
["ID","MTS","AMOUNT","RATE_DAILY","PERIOD"]
[311564847,1705247438736,-675.1928,0.00022292,2]
[311564849,1705247438745,-1000.0,0.00022294,2]
[311564851,1705247438754,-178.66,0.00022343,2]
[311564853,1705247438763,-151.98,0.00022377,2]
[311564855,1705247438772,-4694.43539612,0.00022382,2]
[311564857,1705247438781,-344.96067242,0.00022383,2]
[311564859,1705247438791,-608.8671776,0.00022384,2]
[311564861,1705247438800,-18937.12709548,0.00022384,2]
[311564863,1705247438810,-1096.02714429,0.00022384,2]
[311564865,1705247438819,-255.74768049,0.00022384,2]
[311564867,1705247438831,-156.53151362,0.00022384,2]
[311564869,1705247438841,-284.73114923,0.00022384,2]
[311564871,1705247438850,-313.38914386,0.00022384,2]
[311564873,1705247438860,-2893.51434894,0.00022384,2]
[311564875,1705247438869,-531.67628362,0.00022384,2]
[311564877,1705247438879,-384.17527737,0.00022384,2]
[311564879,1705247438889,-19957.94675724,0.00022385,2]
[311564881,1705247438898,-155.37955841,0.00022386,2]
[311564883,1705247438908,-155.0,0.00022387,2]
[311564885,1705247438918,-229.95979743,0.00022387,2]
[311564887,1705247438926,-348.0140769,0.00022387,2]
[311564889,1705247438935,-2917.9687193,0.00022387,2]
[311564891,1705247438945,-174.94679052,0.00022387,2]
[311564893,1705247438954,-193.29233824,0.00022387,2]
[311564895,1705247438963,-528.20860531,0.00022387,2]
[311564897,1705247438973,-162.43098833,0.00022389,2]
[311564899,1705247438983,-325.52219014,0.00022389,2]
[311564901,1705247438993,-156.08787432,0.00022389,2]
[311564903,1705247439003,-472.80031983,0.00022389,2]
[311564905,1705247439014,-156.77781567,0.00022389,2]
[311564907,1705247439023,-196.37114886,0.00022389,2]
[311564909,1705247439033,-162.45906159,0.00022389,2]
[311564911,1705247439043,-204.24224122,0.00022389,2]
[311564913,1705247439052,-155.0,0.00022389,2]
[311564915,1705247439061,-203.61871638,0.00022389,2]
[311564917,1705247439070,-563.05698065,0.00022389,2]
[311564919,1705247439084,-180.03687188,0.00022389,2]
[311564921,1705247439094,-197.49932494,0.00022389,2]
[311564923,1705247439105,-156.91262656,0.00022389,2]
[311564925,1705247439116,-156.58496978,0.00022389,2]
[311564927,1705247439128,-191.75824117,0.00022389,2]
[311564929,1705247439146,-383.57328564,0.00022389,2]
[311564931,1705247439159,-165.85748834,0.0002239,2]
[311564933,1705247439169,-159.72268356,0.00022391,2]
[311564935,1705247439178,-301.41093162,0.00022391,2]
[311564937,1705247439189,-179.14904306,0.00022391,2]
[311564939,1705247439198,-765.15555151,0.00022391,2]
[311564941,1705247439207,-247.17065983,0.00022391,2]
[311564943,1705247439217,-242.97629324,0.00022391,2]
[311564945,1705247439227,-389.169207,0.00022391,2]
[311564947,1705247439236,-155.0,0.00022391,2]
[311564949,1705247439245,-155.40778752,0.00022391,2]
[311564952,1705247439255,-232.81085492,0.00022391,2]
[311564954,1705247439264,-191.64869268,0.00022391,2]
[311564956,1705247439273,-199.13982967,0.00022391,2]
[311564958,1705247439283,-155.0,0.00022391,2]
[311564960,1705247439292,-277.84661526,0.00022392,2]
[311564962,1705247439302,-245000.0,0.00022394,2]
[311564964,1705247439311,-19798.3865,0.000224,2]
[311564966,1705247439321,-616.0974,0.000224,2]
[311564968,1705247439334,-5273.22,0.000224,2]
[311564970,1705247439343,-178.66,0.00022402,2]
[311564972,1705247439352,-178.66,0.00022461,2]
[311564974,1705247439362,-19114.79827511,0.000225,2]
[311564976,1705247439371,-554.60364303,0.000225,2]
[311564978,1705247439381,-1127.79791091,0.000225,2]
[311564980,1705247439390,-178.66,0.0002252,2]
[311564982,1705247439399,-1127.79791089,0.00022536,2]
[311564984,1705247439408,-161.4,0.00022549,2]
[311564986,1705247439418,-287.86707773,0.00022565,2]
[311564988,1705247439427,-1127.79791089,0.00022572,2]
[311564990,1705247439436,-178.66,0.00022578,2]
[311564992,1705247439445,-125950.87636417,0.000226,2]
[311565001,1705247439520,-1125.725006,0.000226,2]
[311565002,1705247439831,-2840.39685999,0.000226,2]
[311565003,1705247439844,-699.0577829,0.000226,2]
[311565004,1705247439856,-901.958228,0.000226,2]
[311565005,1705247439868,-2005.097984,0.000226,2]
[311565006,1705247439880,-2257.3857564,0.000226,2]
[311565007,1705247439971,-29876.58261878,0.000226,2]
[311565008,1705247440027,-339608.13574972,0.000226,2]
[311565009,1705247440037,-6000.0,0.00022672,3]
[311565010,1705247440046,-506.25,0.00022676,3]
[311565011,1705247440055,-278.4375,0.00022676,3]
[311565012,1705247440065,-296.93558693,0.0002268,3]
[311565013,1705247440074,-229.28980015,0.0002268,3]
[311565014,1705247440084,-168.76884931,0.000227,2]
[311565015,1705247440093,-151.98,0.00022732,2]
[311565016,1705247440103,-219.0796084,0.00022791,2]
[311565017,1705247440112,-2231.62990919,0.00022791,2]
[311565018,1705247440122,-203.00969847,0.00022792,2]
[311565019,1705247440134,-176.96346746,0.00022793,2]
[311565020,1705247440143,-5435.05374584,0.00022793,2]
[311565021,1705247440153,-245.88760889,0.00022793,2]
[311565022,1705247440162,-262.85744683,0.00022794,2]
[311565023,1705247440171,-155.31998547,0.00022794,2]
[311565024,1705247440180,-233.89654324,0.00022794,2]
[311565025,1705247440190,-323.35616017,0.00022795,2]
[311565026,1705247440199,-6617.18167462,0.000228,2]
[311565027,1705247440208,-100000.0,0.000229,2]
[311565028,1705247440217,-250.0,0.000229,2]
[311565029,1705247440226,-5000.0,0.000229,2]
[311565030,1705247440236,-12116.18924628,0.000229,2]
[311565031,1705247440245,-900.0,0.000229,8]
[311565032,1705247440254,-161.4,0.00022912,2]
[311565033,1705247440263,-2185.17061226,0.0002299,2]
[311565034,1705247440273,-151.98,0.00023087,2]
[311565035,1705247440282,-169.71,0.00023237,2]
[311565036,1705247440291,-161.4,0.00023276,2]
[311565037,1705247440301,-151.98,0.00023442,2]
[311565038,1705247440311,-161.4,0.0002364,2]
[311565039,1705247440321,-282.96,0.00023874,2]
[311565040,1705247440330,-1000.0,0.0002392,2]
[311565041,1705247440339,-156.9002706,0.00023975,2]
[311565042,1705247440349,-431.20316627,0.00024,2]
[311565043,1705247440359,-200.98944307,0.00024,2]
[311565044,1705247440369,-161.4,0.00024004,2]
[311565045,1705247440378,-169.71,0.00024216,2]
[311565046,1705247440387,-167.0,0.00024297,2]
[311565047,1705247440397,-6617.18167455,0.00024344,2]
[311565048,1705247440406,-250.0,0.00024658,2]
[311565049,1705247440416,-689.50757189,0.00024675,2]
[311565050,1705247440426,-508.43471138,0.00025,2]
[311565051,1705247440436,-533.55180897,0.00025,2]
[311565052,1705247440447,-200.0,0.00025,2]
[311565053,1705247440456,-619.23466948,0.00025,2]
[311565054,1705247440466,-201.87194842,0.00025,2]
[311565055,1705247440476,-1070.01161759,0.00025,2]
[311565056,1705247440486,-155.47835514,0.00025,2]
[311565058,1705247440495,-345.18548996,0.00025,2]
[311565060,1705247440505,-167.23848345,0.00025,2]
[311565061,1705247440514,-3038.3982796,0.00025,2]
[311565062,1705247440523,-630.40224577,0.00025,2]
[311565063,1705247440533,-303.21915795,0.00025,2]
[311565064,1705247440542,-350.0,0.00025,3]
[311565065,1705247440552,-167.0,0.00025099,2]
[311565066,1705247440561,-169.71,0.00025194,2]
[311565067,1705247440570,-156.87,0.00025561,2]
[311565068,1705247440580,-6617.18167455,0.00025887,2]
[311565069,1705247440589,-167.0,0.00025901,2]
[311565070,1705247440599,-156.9002706,0.0002595,2]
[311565071,1705247440608,-150.0,0.00026079,2]
[311565072,1705247440617,-282.96,0.00026138,2]
[311565073,1705247440626,-422.037,0.00026159,2]
[311565074,1705247440635,-1931.0,0.00026159,2]
[311565075,1705247440644,-318.0,0.00026159,2]
[311565076,1705247440653,-709.683,0.00026159,2]
[311565077,1705247440663,-2903.0,0.00026159,2]
[311565078,1705247440673,-2271.0,0.00026159,2]
[311565079,1705247440682,-150.0,0.00026159,2]
[311565080,1705247440691,-150.0,0.00026159,2]
[311565081,1705247440700,-150.0,0.00026159,2]
[311565082,1705247440709,-1029.0,0.00026159,2]
[311565083,1705247440718,-150.0,0.00026159,2]
[311565084,1705247440727,-150.0,0.00026159,2]
[311565085,1705247440737,-169.71,0.00026173,2]
[311565086,1705247440746,-554.60364301,0.00026325,2]
[311565087,1705247440755,-156.87,0.00026362,2]
[311565088,1705247440764,-61777.0,0.000264,2]
[311565089,1705247440774,-4369.0,0.000264,2]
[311565090,1705247440783,-738.46,0.00026486,2]
[311565091,1705247440793,-1441.12,0.00026575,2]
[311565092,1705247440802,-15175.13,0.00026575,2]
[311565093,1705247440811,-1000.0,0.00026578,2]
[311565094,1705247440821,-167.0,0.00026703,2]
[311565095,1705247440830,-5000.0,0.000269,2]
[311565096,1705247440840,-1300.0,0.000269,9]
[311565097,1705247440850,-155.0,0.00027,2]
[311565098,1705247440859,-400.0,0.00027,3]
[311565099,1705247440868,-415.79405029,0.00027,2]
[311565100,1705247440878,-169.71,0.00027151,2]
[311565101,1705247440887,-689.50757189,0.00027161,3]
[311565102,1705247440896,-156.87,0.00027164,2]
[311565103,1705247440905,-939.56400894,0.00027297,2]
[311565104,1705247440914,-155.65016308,0.00027297,2]
[311565105,1705247440923,-250.91812939,0.00027297,2]
[311565106,1705247440932,-2594.38329,0.00027297,2]
[311565107,1705247440941,-177.6089,0.00027297,2]
[311565108,1705247440951,-155.0,0.00027297,2]
[311565109,1705247440960,-183.06289581,0.00027297,2]
[311565110,1705247440969,-155.0,0.00027298,2]
[311565111,1705247440978,-5404.91566961,0.000273,2]
[311565112,1705247441089,-4513.6,0.000273,2]
[311565113,1705247441101,-383.18209512,0.000273,2]
[311565114,1705247441111,-3447.66437999,0.000273,2]
[311565115,1705247441124,-6854.03338474,0.000273,2]
[311565116,1705247441138,-10301.69776473,0.000273,2]
[311565117,1705247441147,-155.0,0.00027397,2]
[311565118,1705247441157,-631.75,0.00027397,7]
[311565119,1705247441166,-631.75,0.00027397,7]
[311565120,1705247441175,-631.75,0.00027397,7]
[311565121,1705247441184,-631.75,0.00027397,7]
[311565122,1705247441194,-631.75,0.00027397,7]
[311565123,1705247441203,-631.75,0.00027397,7]
[311565124,1705247441212,-631.75,0.00027397,7]
[311565125,1705247441222,-631.75,0.00027397,7]
[311565126,1705247441231,-631.75,0.00027397,7]
[311565127,1705247441240,-631.75,0.00027397,7]
[311565128,1705247441249,-631.75,0.00027397,7]
[311565129,1705247441259,-631.75,0.00027397,7]
[311565130,1705247441269,-631.75,0.00027397,7]
[311565131,1705247441278,-631.75,0.00027397,7]
[311565132,1705247441287,-631.75,0.00027397,7]
[311565133,1705247441298,-631.75,0.00027397,7]
[311565134,1705247441307,-631.75,0.00027397,7]
[311565135,1705247441317,-631.75,0.00027397,7]
[311565136,1705247441328,-631.75,0.00027397,7]
[311565137,1705247441337,-631.75,0.00027397,7]
[311565138,1705247441348,-631.75,0.00027397,7]
[311565139,1705247441357,-631.75,0.00027397,7]
[311565140,1705247441367,-631.75,0.00027397,7]
[311565141,1705247441376,-631.98759708,0.00027397,7]
[311565142,1705247441385,-250.0,0.00027397,2]
[311565143,1705247441395,-5690.6930067,0.000274,2]
[311565145,1705247441404,-6595.33824675,0.00027431,2]
[311565147,1705247441417,-21.8434278,0.00027431,2]
[311565148,1705247441425,-566.47160681,0.00027447,2]
[311565150,1705247441525,-5478.25177369,0.00027447,2]
[311565151,1705247441552,-4256.97438423,0.00027447,2]
[311565152,1705247441561,-167.0,0.00027505,2]
[311565153,1705247441570,-276.94625196,0.00027799,2]
[311565154,1705247441581,-3000.0,0.000278,2]
[311565155,1705247441590,-156.9002706,0.00027925,2]
[311565156,1705247441600,-156.87,0.00027965,2]
[311565157,1705247441609,-202.89143555,0.00028,2]
[311565158,1705247441618,-165.67422842,0.00028,2]
[311565159,1705247441628,-2083.35813187,0.00028,2]
[311565160,1705247441638,-785.75059549,0.00028065,2]
[311565161,1705247441647,-10301.69776473,0.00028124,2]
[311565162,1705247441657,-169.71,0.0002813,2]
[311565163,1705247441666,-167.0,0.00028307,2]
[311565164,1705247441676,-632.92326083,0.00028402,6]
[311565165,1705247441992,1797.8975,0.00022008,2]
[311565166,1705247442574,-1467.29741007,0.000226,2]
[311565167,1705247442587,-568.07990224,0.000226,2]
[311565169,1705247442840,-379.00239166,0.000226,2]
[311565171,1705247442852,-16431.9742814,0.000226,2]
[311565173,1705247442864,-351.33923311,0.000226,2]
[311565175,1705247442888,-4489.1604,0.000226,2]
[311565177,1705247442900,-6066.36540929,0.000226,2]
[311565178,1705247442912,-276.29600004,0.000226,2]
[311565179,1705247442926,-564.56499991,0.000226,2]
[311565180,1705247442940,-513.84877829,0.000226,2]
[311565198,1705247444975,-296.3246523,0.000226,2]
[311565199,1705247444987,-446.82728995,0.000226,2]
[311565200,1705247445011,-54563.23594643,0.000226,2]
[311565201,1705247445021,-161.54,0.00023,2]
[311565202,1705247445030,-7367.06673917,0.00028402,6]
[311565203,1705247445039,-282.96,0.00028402,2]
[311565204,1705247445048,-476.0,0.00028463,5]
[311565205,1705247445057,-156.87,0.00028767,2]
[311565206,1705247445066,-155.0,0.00028767,2]
[311565207,1705247445076,-150.0,0.00028799,2]
[311565208,1705247445085,-3000.0,0.000288,2]
[311565209,1705247445094,-8000.0,0.000288,2]
[311565210,1705247445103,-10301.69776473,0.00028802,2]
[311565211,1705247445112,-6617.18167455,0.00028975,2]
[311565212,1705247445121,-450.0,0.00029,3]
[311565213,1705247445131,-169.71,0.00029108,2]
[311565214,1705247445142,-318.0,0.00029159,2]
[311565215,1705247445151,-2596.219,0.00029159,2]
[311565216,1705247445160,-2271.0,0.00029159,2]
[311565217,1705247445169,-1029.0,0.00029159,2]
[311565218,1705247445178,-150.0,0.00029159,2]
[311565219,1705247445187,-1000.0,0.00029236,2]
[311565220,1705247445196,-10301.69776473,0.00029479,2]
[311565221,1705247445205,-156.87,0.00029568,2]
[311565222,1705247445214,-689.50757189,0.00029647,4]
[311565223,1705247445224,-150.0,0.00029799,2]
[311565224,1705247445233,-175.36700291,0.000298,2]
[311565225,1705247445243,-3387.15918268,0.000298,2]
[311565226,1705247445255,-2012.06340832,0.000298,2]
[311565227,1705247445264,-152.9,0.00029836,2]
[311565228,1705247445273,-201.72079495,0.000299,2]
[311565229,1705247445282,-156.9002706,0.000299,2]
[311565230,1705247445292,-355.46368901,0.000299,2]
[311565231,1705247445302,-2308.05324275,0.0002998,7]
[311565232,1705247445311,-6854.58505687,0.0003,4]
[311565233,1705247445320,-9943.38000472,0.0003,4]
[311565234,1705247445333,-357.58454009,0.0003,4]
[311565235,1705247445372,-449.19,0.0003,4]
[311565236,1705247445383,-8808.51945345,0.0003,4]
[311565237,1705247445398,-334.38319032,0.0003,4]
[311565238,1705247445410,-5299.49781783,0.0003,4]
[311565239,1705247445426,-3908.30085095,0.0003,4]
[311565240,1705247445437,-158.98643164,0.0003,4]
[311565241,1705247445447,-582.05205839,0.0003,2]
[311565242,1705247445456,-192.58534306,0.0003,2]
[311565243,1705247445465,-827.92042913,0.0003,2]
[311565244,1705247445474,-8810.25488683,0.0003,2]
[311565245,1705247445486,-819.68910007,0.0003,2]
[311565246,1705247445495,-690.03922118,0.0003,3]
[311565247,1705247445506,-2600.0,0.0003,3]
[311565248,1705247445517,-125.74756309,0.0003,3]
[311565249,1705247445526,-678.07747155,0.0003,4]
[311565250,1705247445535,-1573.31294625,0.0003,2]
[311565251,1705247445545,-366.83295573,0.0003,4]
[311565252,1705247445554,-357.48963238,0.0003,2]
[311565253,1705247445562,-1415.439431,0.0003,4]
[311565254,1705247445574,-273.9674551,0.0003,4]
[311565255,1705247445586,-1086.96009113,0.0003,4]
[311565256,1705247445596,-1004.8345384,0.0003,4]
[311565257,1705247445607,-450.60015,0.0003,4]
[311565258,1705247445623,-508.72549083,0.0003,4]
[311565259,1705247445632,-1292.48709794,0.0003,4]
[311565260,1705247445641,-1000.0,0.0003,2]
[311565261,1705247445649,-444.61405432,0.0003,4]
[311565262,1705247445658,-40831.84768423,0.0003,4]
[311565263,1705247445669,-9010.00224001,0.0003,4]
[311565265,1705247446431,-445.00244877,0.00022386,2]
[311565266,1705247446440,-68.18255128,0.0003,4]
[311565267,1705247446456,-450.85126246,0.0003,4]
[311565268,1705247446468,-3748.31918022,0.0003,4]
[311565269,1705247446480,-18001.63568157,0.0003,4]
[311565270,1705247446492,-2396.05969022,0.0003,4]
[311565271,1705247446503,-10239.34315795,0.0003,4]
[311565272,1705247446515,-449.44225905,0.0003,4]
[311565273,1705247446555,-507.53028692,0.0003,4]
[311565274,1705247446585,-311.1074841,0.0003,4]
[311565275,1705247446606,-6809.30771398,0.00028402,6]
[311565276,1705247446615,-222573.22250207,0.0003,4]
[311565277,1705247446625,-2500.0,0.0003,2]
[311565278,1705247446634,-19008.95241927,0.0003,4]
[311565279,1705247446644,-413.43001973,0.0003,7]
[311565280,1705247446653,-2550.6211898,0.0003,4]
[311565281,1705247446663,-14000.0,0.0003,10]
[311565282,1705247446673,-169.71,0.00030087,2]
[311565283,1705247446682,-251.65794723,0.000301,4]
[311565284,1705247446692,-155.0,0.00030137,2]
[311565285,1705247446702,-554.60364301,0.0003015,2]
[311565286,1705247446711,-10301.69776473,0.00030157,2]
[311565287,1705247446721,-156.87,0.00030369,2]
[311565288,1705247446731,-6617.18167455,0.00030518,2]
[311565289,1705247446741,-282.96,0.00030666,2]
[311565290,1705247446750,-150.0,0.00030799,2]
[311565291,1705247446759,-250.0,0.000308,2]
[311565292,1705247446769,-10301.69776473,0.00030835,2]
[311565293,1705247446779,-223.50061697,0.000309,2]
[311565294,1705247446788,-223.50061665,0.000309,2]
[311565295,1705247446797,-2791.5817053,0.00031,30]
[311565296,1705247446807,-500.0,0.00031,3]
[311565297,1705247446816,-169.71,0.00031065,2]
[311565298,1705247446826,-250.0,0.00031074,2]
[311565299,1705247446836,-811.309119,0.00031094,5]
[311565300,1705247446845,-3779.0,0.00031278,5]
[311565301,1705247446855,-6937.43156388,0.000315,2]
[311565302,1705247446864,-222.23,0.00031507,2]
[311565303,1705247446874,-155.0,0.00031507,2]
[311565304,1705247446884,-10301.69776473,0.00031512,2]
[311565305,1705247446894,-208.07,0.00031644,2]
[311565306,1705247446904,-150.0,0.00031799,2]
[311565307,1705247446913,-272117.917741,0.000318,2]
[311565308,1705247446923,-1000.0,0.00031893,2]
[311565309,1705247446934,-1800.0,0.000319,11]
[311565310,1705247446944,-153.84,0.00031963,2]
[311565311,1705247446954,-201.95,0.00031987,120]
[311565312,1705247446963,-100000.0,0.00032,2]
[311565313,1705247446973,-13061.65345673,0.00032,4]
[311565314,1705247446982,-169.71,0.00032044,2]
[311565315,1705247446991,-6617.18167455,0.00032062,3]
[311565316,1705247447001,-689.50757189,0.00032132,5]
[311565317,1705247447010,-2271.0,0.00032159,2]
[311565318,1705247447020,-1029.0,0.00032159,2]
[311565319,1705247447029,-10301.69776473,0.0003219,2]
[311565320,1705247447039,-150.0,0.00032799,2]
[311565321,1705247447048,-10301.69776473,0.00032867,2]
[311565322,1705247447057,-534.98767824,0.00032876,2]
[311565323,1705247447067,-153.84,0.00032877,2]
[311565324,1705247447076,-150.1,0.00032877,2]
[311565325,1705247447087,-778.35,0.00032877,15]
[311565326,1705247447096,-150.0,0.00032877,2]
[311565327,1705247447105,-155.0,0.00032877,2]
[311565328,1705247447115,-4075.60130138,0.000329,2]
[311565329,1705247447124,-1000.0,0.000329,2]
[311565330,1705247447133,-282.96,0.0003293,2]
[311565331,1705247447143,-100000.0,0.00033,3]
[311565332,1705247447152,-1974.95444241,0.00033,2]
[311565333,1705247447161,-169.71,0.00033022,2]
[311565334,1705247447171,-223.50061665,0.00033298,2]
[311565335,1705247447180,-7884.3119,0.000334,3]
[311565336,1705247447189,-636.9,0.000335,2]
[311565337,1705247447199,-636.9,0.000335,2]
[311565338,1705247447209,-636.9,0.000335,2]
[311565339,1705247447218,-636.9,0.000335,2]
[311565340,1705247447228,-636.9,0.000335,2]
[311565341,1705247447237,-636.9,0.000335,2]
[311565342,1705247447246,-636.9,0.000335,2]
[311565343,1705247447255,-636.9,0.000335,2]
[311565344,1705247447265,-636.9,0.000335,2]
[311565345,1705247447274,-636.9,0.000335,2]
[311565346,1705247447284,-636.9,0.000335,2]
[311565347,1705247447293,-636.9,0.000335,2]
[311565348,1705247447303,-636.9,0.000335,2]
[311565349,1705247447313,-636.9,0.000335,2]
[311565350,1705247447322,-636.9,0.000335,2]
[311565351,1705247447332,-636.9,0.000335,2]
[311565352,1705247447341,-636.9,0.000335,2]
[311565353,1705247447350,-636.9,0.000335,2]
[311565354,1705247447360,-636.9,0.000335,2]
[311565355,1705247447369,-636.9,0.000335,2]
[311565356,1705247447378,-10301.69776473,0.00033545,2]
[311565357,1705247447388,-6617.18167455,0.00033605,5]
[311565358,1705247447397,-150.0,0.00033742,2]
[311565359,1705247447407,-153.84,0.0003379,2]
[311565360,1705247447416,-150.0,0.00033799,2]
[311565361,1705247447426,-785.75059547,0.00033828,2]
[311565362,1705247447657,-554.60364301,0.00033975,2]
[311565363,1705247447676,-100000.0,0.00034,4]
[311565364,1705247447687,-802.83760226,0.00034,4]
[311565365,1705247447696,-1000.0,0.00034,4]
[311565366,1705247447706,-17078.54640767,0.00034,7]
[311565367,1705247447715,-500.0,0.00034,2]
[311565368,1705247447724,-169.71,0.00034001,2]
[311565369,1705247447734,-10301.69776473,0.00034222,2]
[311565370,1705247447743,-155.0,0.00034247,2]
[311565371,1705247447752,-500.0,0.00034466,2]
[311565372,1705247447761,-500.0,0.00034466,2]
[311565373,1705247447770,-500.0,0.00034466,2]
[311565374,1705247447780,-500.0,0.00034466,2]
[311565375,1705247447789,-500.0,0.00034466,2]
[311565376,1705247447798,-500.0,0.00034466,2]
[311565377,1705247447809,-500.0,0.00034466,2]
[311565378,1705247447818,-500.0,0.00034466,2]
[311565379,1705247447827,-500.0,0.00034466,2]
[311565380,1705247447838,-500.0,0.00034466,2]
[311565381,1705247447847,-500.0,0.00034466,2]
[311565382,1705247447857,-500.0,0.00034466,2]
[311565383,1705247447867,-500.0,0.00034466,2]
[311565384,1705247447877,-500.0,0.00034466,2]
[311565385,1705247447886,-500.0,0.00034466,2]
[311565386,1705247447896,-500.0,0.00034466,2]
[311565387,1705247447905,-500.0,0.00034466,2]
[311565388,1705247447914,-500.0,0.00034466,2]
[311565389,1705247447924,-500.0,0.00034466,2]
[311565390,1705247447933,-500.0,0.00034466,2]
[311565391,1705247447943,-500.0,0.00034466,2]
[311565392,1705247447953,-500.0,0.00034466,2]
[311565393,1705247447963,-500.0,0.00034466,2]
[311565394,1705247447972,-500.0,0.00034466,2]
[311565395,1705247447981,-500.0,0.00034466,2]
[311565396,1705247447990,-500.0,0.00034466,2]
[311565397,1705247448000,-500.0,0.00034466,2]
[311565398,1705247448009,-500.0,0.00034466,2]
[311565399,1705247448019,-500.0,0.00034466,2]
[311565400,1705247448028,-500.0,0.00034466,2]
[311565401,1705247448038,-500.0,0.00034466,2]
[311565402,1705247448047,-500.0,0.00034466,2]
[311565403,1705247448056,-500.0,0.00034466,2]
[311565404,1705247448066,-500.0,0.00034466,2]
[311565405,1705247448075,-500.0,0.00034466,2]
[311565406,1705247448086,-500.0,0.00034466,2]
[311565407,1705247448095,-500.0,0.00034466,2]
[311565408,1705247448104,-500.0,0.00034466,2]
[311565409,1705247448113,-500.0,0.00034466,2]
[311565410,1705247448123,-500.0,0.00034466,2]
[311565411,1705247448134,-500.0,0.00034466,2]
[311565412,1705247448143,-500.0,0.00034466,2]
[311565413,1705247448153,-500.0,0.00034466,2]
[311565414,1705247448162,-500.0,0.00034466,2]
[311565415,1705247448171,-500.0,0.00034466,2]
[311565416,1705247448182,-500.0,0.00034466,2]
[311565417,1705247448191,-500.0,0.00034466,2]
[311565418,1705247448200,-500.0,0.00034466,2]
[311565419,1705247448210,-500.0,0.00034466,2]
[311565420,1705247448219,-500.0,0.00034466,2]
[311565421,1705247448228,-500.0,0.00034466,2]
[311565422,1705247448237,-500.0,0.00034466,2]
[311565423,1705247448246,-500.0,0.00034466,2]
[311565424,1705247448255,-500.0,0.00034466,2]
[311565425,1705247448264,-500.0,0.00034466,2]
[311565426,1705247448273,-500.0,0.00034466,2]
[311565427,1705247448283,-500.0,0.00034466,2]
[311565428,1705247448292,-500.0,0.00034466,2]
[311565429,1705247448301,-500.0,0.00034466,2]
[311565430,1705247448310,-500.0,0.00034466,2]
[311565431,1705247448319,-500.0,0.00034466,2]
[311565432,1705247448329,-500.0,0.00034466,2]
[311565433,1705247448339,-500.0,0.00034466,2]
[311565434,1705247448348,-500.0,0.00034466,2]
[311565435,1705247448358,-500.0,0.00034466,2]
[311565436,1705247448367,-500.0,0.00034466,2]
[311565437,1705247448376,-500.0,0.00034466,2]
[311565438,1705247448385,-500.0,0.00034466,2]
[311565439,1705247448394,-500.0,0.00034466,2]
[311565440,1705247448402,-500.0,0.00034466,2]
[311565441,1705247448411,-177.05,0.00034521,2]
[311565442,1705247448421,-151.47752648,0.00034587,2]
[311565443,1705247448430,-489.22219992,0.000346,4]
[311565444,1705247448439,-150.0,0.00034607,2]
[311565445,1705247448449,-689.50757189,0.00034618,7]
[311565446,1705247448458,-180.0,0.00034658,2]
[311565447,1705247448467,-153.84,0.00034703,2]
[311565448,1705247448477,-355.46368899,0.00034745,2]
[311565449,1705247448486,-150.0,0.00034799,2]
[311565450,1705247448495,-522.29170993,0.000348,24]
[311565451,1705247448504,-8953.68039973,0.000349,4]
[311565452,1705247448513,-3712.35771604,0.000349,2]
[311565453,1705247448523,-3712.35771594,0.000349,2]
[311565454,1705247448532,-3712.35771594,0.000349,2]
[311565455,1705247448541,-3712.35771594,0.000349,2]